[Event "*** Titled Tuesday Blitz"]
[Site "Chess.com"]
[Date "2018.09.04"]
[Round "9"]
[White "Msb2"]
[Black "2165149677570"]
[Result "1-0"]
[WhiteElo "2831"]
[BlackElo "2294"]
[TimeControl "180+2"]
[EndTime "15:37:49 PDT"]
[Termination "Msb2 won by resignation"]

1. d4 {[%clk 0:03:01]} 1... Nf6 {[%clk 0:02:59.8]} 2. c4 {[%clk 0:03:01.8]} 2...
e6 {[%clk 0:03:00.9]} 3. Nf3 {[%clk 0:03:02.7]} 3... b6 {[%clk 0:03:02]} 4. g3
{[%clk 0:03:03.9]} 4... Ba6 {[%clk 0:03:03.4]} 5. b3 {[%clk 0:03:05.1]} 5... Bb7
{[%clk 0:03:04.2]} 6. Bg2 {[%clk 0:03:06]} 6... Bb4+ {[%clk 0:03:05.6]} 7. Bd2
{[%clk 0:03:07.6]} 7... a5 {[%clk 0:03:07.1]} 8. O-O {[%clk 0:03:08.1]} 8... O-O
{[%clk 0:03:08.6]} 9. Qc2 {[%clk 0:03:09.7]} 9... Ne4 {[%clk 0:03:05.5]} 10. Ng5
{[%clk 0:02:59.6]} 10... Bxd2 {[%clk 0:02:15.5]} 11. Nxh7 {[%clk 0:02:27.1]}
11... f5 {[%clk 0:01:55.6]} 12. Nxf8 {[%clk 0:02:22.6]} 12... Bg5 {[%clk
0:01:47.1]} 13. Ng6 {[%clk 0:02:22.5]} 13... Qf6 {[%clk 0:01:44.5]} 14. Ne5
{[%clk 0:02:19.3]} 14... d6 {[%clk 0:01:40.3]} 15. Nf3 {[%clk 0:02:20.5]} 15...
Bh6 {[%clk 0:01:41.5]} 16. Nc3 {[%clk 0:02:18.8]} 16... Nxc3 {[%clk 0:01:36.1]}
17. Qxc3 {[%clk 0:02:20.7]} 17... c5 {[%clk 0:01:37.4]} 18. e3 {[%clk
0:02:18.2]} 18... Nc6 {[%clk 0:01:34.1]} 19. Rad1 {[%clk 0:02:18.9]} 19... a4
{[%clk 0:01:32.7]} 20. Qd2 {[%clk 0:02:02]} 20... axb3 {[%clk 0:01:29.9]} 21.
axb3 {[%clk 0:02:03.9]} 21... Nb4 {[%clk 0:01:21.4]} 22. dxc5 {[%clk 0:02:03.3]}
22... dxc5 {[%clk 0:01:22.8]} 23. Nh4 {[%clk 0:01:59.1]} 23... Bxg2 {[%clk
0:01:21.3]} 24. Kxg2 {[%clk 0:01:59.2]} 24... g5 {[%clk 0:01:15.3]} 25. Nf3
{[%clk 0:01:59.5]} 25... g4 {[%clk 0:01:17.2]} 26. Ng1 {[%clk 0:01:54.5]} 26...
Qe5 {[%clk 0:01:03.5]} 27. Ne2 {[%clk 0:01:50.5]} 27... Qe4+ {[%clk 0:00:52.7]}
28. Kg1 {[%clk 0:01:51.9]} 28... Bg5 {[%clk 0:00:51.2]} 29. Nc3 {[%clk
0:01:46.7]} 29... Qf3 {[%clk 0:00:45.2]} 30. Qd7 {[%clk 0:01:45.4]} 1-0

[Event "*** Titled Tuesday Blitz"]
[Site "Chess.com"]
[Date "2018.09.04"]
[Round "9"]
[White "MFBerna"]
[Black "DanielNaroditsky"]
[Result "0-1"]
[WhiteElo "2378"]
[BlackElo "2948"]
[TimeControl "180+2"]
[EndTime "15:38:32 PDT"]
[Termination "DanielNaroditsky won by resignation"]

1. e4 {[%clk 0:03:01.9]} 1... e5 {[%clk 0:03:01.3]} 2. Nf3 {[%clk 0:03:01.8]}
2... Nc6 {[%clk 0:03:02.7]} 3. Bb5 {[%clk 0:03:03]} 3... a6 {[%clk 0:03:04.1]}
4. Ba4 {[%clk 0:03:04.2]} 4... Nf6 {[%clk 0:03:05.4]} 5. O-O {[%clk 0:03:05.1]}
5... Be7 {[%clk 0:03:06.9]} 6. Re1 {[%clk 0:03:06.2]} 6... b5 {[%clk 0:03:08.4]}
7. Bb3 {[%clk 0:03:07.4]} 7... d6 {[%clk 0:03:10.2]} 8. c3 {[%clk 0:03:08.5]}
8... O-O {[%clk 0:03:11.4]} 9. h3 {[%clk 0:03:10]} 9... Na5 {[%clk 0:03:12.7]}
10. Bc2 {[%clk 0:03:10.9]} 10... c5 {[%clk 0:03:14.4]} 11. d4 {[%clk 0:03:12.5]}
11... Nd7 {[%clk 0:03:16]} 12. Nbd2 {[%clk 0:03:13.1]} 12... exd4 {[%clk
0:03:17.4]} 13. cxd4 {[%clk 0:03:13.6]} 13... Nc6 {[%clk 0:03:19.3]} 14. Nf1
{[%clk 0:03:06]} 14... cxd4 {[%clk 0:03:20.3]} 15. Nxd4 {[%clk 0:03:06.7]} 15...
Nxd4 {[%clk 0:03:22.2]} 16. Qxd4 {[%clk 0:03:07.5]} 16... Ne5 {[%clk 0:03:24.1]}
17. f4 {[%clk 0:02:28.2]} 17... Nc4 {[%clk 0:03:17.6]} 18. b3 {[%clk 0:02:09.3]}
18... Qb6 {[%clk 0:03:08.6]} 19. Bb2 {[%clk 0:01:50.9]} 19... Qxd4+ {[%clk
0:02:50.3]} 20. Bxd4 {[%clk 0:01:52.8]} 20... Na3 {[%clk 0:02:51.7]} 21. Bd3
{[%clk 0:01:43]} 21... Bb7 {[%clk 0:02:52.5]} 22. Rac1 {[%clk 0:01:32.8]} 22...
Rac8 {[%clk 0:02:50.6]} 23. Ne3 {[%clk 0:01:34.1]} 23... Rfe8 {[%clk 0:02:29.5]}
24. Nf5 {[%clk 0:01:16.9]} 24... Bf8 {[%clk 0:02:28.3]} 25. Rxc8 {[%clk
0:01:06.5]} 25... Rxc8 {[%clk 0:02:16.4]} 26. Bb2 {[%clk 0:00:57.2]} 26... Nc2
{[%clk 0:02:13.3]} 27. Rc1 {[%clk 0:00:54.5]} 27... Nb4 {[%clk 0:02:14.6]} 28.
Bb1 {[%clk 0:00:47.7]} 28... Rxc1+ {[%clk 0:02:04.4]} 29. Bxc1 {[%clk
0:00:49.6]} 29... g6 {[%clk 0:01:56.2]} 30. Ne3 {[%clk 0:00:38.3]} 30... Bg7
{[%clk 0:01:56.6]} 31. a3 {[%clk 0:00:33.7]} 31... Nc6 {[%clk 0:01:56.8]} 32.
Nd5 {[%clk 0:00:28]} 32... Nd4 {[%clk 0:01:55.4]} 33. b4 {[%clk 0:00:15.2]}
33... Bxd5 {[%clk 0:01:51.8]} 34. exd5 {[%clk 0:00:17.1]} 34... Ne2+ {[%clk
0:01:52.7]} 35. Kf2 {[%clk 0:00:12.8]} 35... Nxc1 {[%clk 0:01:54.6]} 36. Ke3
{[%clk 0:00:12.4]} 36... Bb2 {[%clk 0:01:55.5]} 37. Kd2 {[%clk 0:00:09.9]} 37...
Bxa3 {[%clk 0:01:56.8]} 38. Kc3 {[%clk 0:00:11.3]} 38... Ne2+ {[%clk 0:01:57.6]}
39. Kb3 {[%clk 0:00:12.5]} 39... Bc1 {[%clk 0:01:58.3]} 0-1

[Event "*** Titled Tuesday Blitz"]
[Site "Chess.com"]
[Date "2018.09.04"]
[Round "9"]
[White "AndrewDGreen"]
[Black "akretchetov"]
[Result "1-0"]
[WhiteElo "2237"]
[BlackElo "2229"]
[TimeControl "180+2"]
[EndTime "15:38:39 PDT"]
[Termination "AndrewDGreen won by resignation"]

1. d4 {[%clk 0:02:36]} 1... Nf6 {[%clk 0:02:27.6]} 2. Nf3 {[%clk 0:02:36.2]}
2... e6 {[%clk 0:02:28.3]} 3. Bf4 {[%clk 0:02:35.9]} 3... c5 {[%clk 0:02:28.3]}
4. e3 {[%clk 0:02:36.7]} 4... cxd4 {[%clk 0:02:29.1]} 5. exd4 {[%clk 0:02:37.6]}
5... d6 {[%clk 0:02:29]} 6. Nbd2 {[%clk 0:02:36.5]} 6... Be7 {[%clk 0:02:28.5]}
7. h3 {[%clk 0:02:34.9]} 7... O-O {[%clk 0:02:27.8]} 8. Bd3 {[%clk 0:02:35.8]}
8... b6 {[%clk 0:02:28.6]} 9. O-O {[%clk 0:02:36.2]} 9... Bb7 {[%clk 0:02:28.4]}
10. Re1 {[%clk 0:02:37.3]} 10... a6 {[%clk 0:02:25]} 11. Bh2 {[%clk 0:02:35.5]}
11... Nbd7 {[%clk 0:02:22.8]} 12. a4 {[%clk 0:02:36]} 12... Qb8 {[%clk
0:02:14.5]} 13. a5 {[%clk 0:02:35.3]} 13... b5 {[%clk 0:02:14.1]} 14. c4 {[%clk
0:02:35.9]} 14... bxc4 {[%clk 0:02:10.5]} 15. Nxc4 {[%clk 0:02:37.8]} 15... Bc6
{[%clk 0:01:59.9]} 16. Nfd2 {[%clk 0:02:29.9]} 16... Rd8 {[%clk 0:01:48.6]} 17.
Ra3 {[%clk 0:02:29.7]} 17... Bb5 {[%clk 0:01:44]} 18. Rc3 {[%clk 0:02:25.9]}
18... Nd5 {[%clk 0:01:42.4]} 19. Rc1 {[%clk 0:02:25.1]} 19... N7f6 {[%clk
0:01:39.3]} 20. Bb1 {[%clk 0:02:12.1]} 20... Qb7 {[%clk 0:01:32.4]} 21. Ne4
{[%clk 0:01:59.9]} 21... Bxc4 {[%clk 0:01:30.7]} 22. Rxc4 {[%clk 0:01:57.7]}
22... Qxb2 {[%clk 0:01:30]} 23. Nxf6+ {[%clk 0:01:51.6]} 23... Bxf6 {[%clk
0:01:25.1]} 24. Qd3 {[%clk 0:01:46.2]} 24... g6 {[%clk 0:01:20.5]} 25. Qf3
{[%clk 0:01:27.4]} 25... Kg7 {[%clk 0:01:17.1]} 26. Be4 {[%clk 0:01:25.4]} 26...
Qb5 {[%clk 0:01:09.6]} 27. Bxd5 {[%clk 0:01:19]} 27... Qxd5 {[%clk 0:01:04]} 28.
Qxd5 {[%clk 0:01:15.1]} 28... exd5 {[%clk 0:01:05.2]} 29. Rc6 {[%clk 0:01:11.5]}
29... Bxd4 {[%clk 0:00:58.6]} 30. Rd1 {[%clk 0:01:12.2]} 30... Bc5 {[%clk
0:00:55.7]} 31. Rxd5 {[%clk 0:01:10.5]} 31... Kf6 {[%clk 0:00:37.8]} 32. Rdxc5
{[%clk 0:01:09.4]} 32... Rab8 {[%clk 0:00:35.8]} 33. Bxd6 {[%clk 0:01:06.6]}
33... Rb1+ {[%clk 0:00:33.7]} 34. Kh2 {[%clk 0:01:08.1]} 1-0

[Event "*** Titled Tuesday Blitz"]
[Site "Chess.com"]
[Date "2018.09.04"]
[Round "9"]
[White "Alopekos"]
[Black "jk13"]
[Result "1-0"]
[WhiteElo "2454"]
[BlackElo "2532"]
[TimeControl "180+2"]
[EndTime "15:38:40 PDT"]
[Termination "Alopekos won by checkmate"]

1. e4 {[%clk 0:03:01.9]} 1... e5 {[%clk 0:03:00.6]} 2. Nf3 {[%clk 0:03:02.8]}
2... Nc6 {[%clk 0:03:02.2]} 3. Bb5 {[%clk 0:03:04.3]} 3... a6 {[%clk 0:03:03.1]}
4. Ba4 {[%clk 0:03:05.3]} 4... Nf6 {[%clk 0:03:04.6]} 5. O-O {[%clk 0:03:06.3]}
5... b5 {[%clk 0:03:06.5]} 6. Bb3 {[%clk 0:03:07.3]} 6... Bc5 {[%clk 0:03:08.4]}
7. a4 {[%clk 0:03:07.7]} 7... Rb8 {[%clk 0:03:09.1]} 8. Nxe5 {[%clk 0:03:07.8]}
8... Nxe5 {[%clk 0:03:09.8]} 9. d4 {[%clk 0:03:09.3]} 9... Bxd4 {[%clk
0:03:11.3]} 10. Qxd4 {[%clk 0:03:10.8]} 10... d6 {[%clk 0:03:13.2]} 11. f4
{[%clk 0:03:12.1]} 11... Nc6 {[%clk 0:03:10.4]} 12. Qc3 {[%clk 0:03:11.2]} 12...
Ne7 {[%clk 0:03:11.2]} 13. Qd3 {[%clk 0:03:12.4]} 13... O-O {[%clk 0:03:04.2]}
14. Nc3 {[%clk 0:03:13.2]} 14... Bb7 {[%clk 0:02:51.5]} 15. axb5 {[%clk
0:02:00.8]} 15... axb5 {[%clk 0:02:52.1]} 16. e5 {[%clk 0:01:54.5]} 16... dxe5
{[%clk 0:02:51]} 17. Qxd8 {[%clk 0:01:52]} 17... Rbxd8 {[%clk 0:02:52.6]} 18.
fxe5 {[%clk 0:01:53.3]} 18... Ng4 {[%clk 0:02:48.2]} 19. Bg5 {[%clk 0:01:18.7]}
19... Rde8 {[%clk 0:02:29.4]} 20. Ra7 {[%clk 0:01:03.5]} 20... Bc8 {[%clk
0:02:19.5]} 21. Rxc7 {[%clk 0:00:58.8]} 21... Ng6 {[%clk 0:02:14.1]} 22. Rfxf7
{[%clk 0:00:36.7]} 22... Rxf7 {[%clk 0:01:35.7]} 23. Bxf7+ {[%clk 0:00:33.3]}
23... Kf8 {[%clk 0:01:37.6]} 24. Bxe8 {[%clk 0:00:34.8]} 24... Kxe8 {[%clk
0:01:28.8]} 25. Rxc8+ {[%clk 0:00:34.6]} 25... Kd7 {[%clk 0:01:30.7]} 26. Rd8+
{[%clk 0:00:25.7]} 26... Kc7 {[%clk 0:01:31.7]} 27. Nxb5+ {[%clk 0:00:26.7]}
27... Kb7 {[%clk 0:01:32.6]} 28. e6 {[%clk 0:00:25.3]} 28... N4e5 {[%clk
0:01:33.2]} 29. e7 {[%clk 0:00:19.9]} 29... Nxe7 {[%clk 0:01:32.9]} 30. Bxe7
{[%clk 0:00:21.8]} 30... Kb6 {[%clk 0:01:33.7]} 31. Nc3 {[%clk 0:00:19.8]} 31...
Kc6 {[%clk 0:01:34.2]} 32. Rd6+ {[%clk 0:00:18.2]} 32... Kb7 {[%clk 0:01:34.5]}
33. Nd5 {[%clk 0:00:17]} 33... h6 {[%clk 0:01:33.9]} 34. b4 {[%clk 0:00:17.7]}
34... Nc6 {[%clk 0:01:33.2]} 35. b5 {[%clk 0:00:18.5]} 35... Nd4 {[%clk
0:01:32.1]} 36. Rd7+ {[%clk 0:00:18.2]} 36... Ka8 {[%clk 0:01:33.6]} 37. Nb6+
{[%clk 0:00:18.9]} 37... Kb8 {[%clk 0:01:35.2]} 38. Bd6# {[%clk 0:00:20.8]} 1-0

[Event "*** Titled Tuesday Blitz"]
[Site "Chess.com"]
[Date "2018.09.04"]
[Round "9"]
[White "afgano29"]
[Black "lavr92"]
[Result "1-0"]
[WhiteElo "2698"]
[BlackElo "2598"]
[TimeControl "180+2"]
[EndTime "15:39:08 PDT"]
[Termination "afgano29 won by resignation"]

1. d4 {[%clk 0:03:01.9]} 1... d5 {[%clk 0:03:00]} 2. c4 {[%clk 0:03:02.8]} 2...
c6 {[%clk 0:03:01.3]} 3. Nf3 {[%clk 0:03:04.1]} 3... Nf6 {[%clk 0:03:02.6]} 4.
Nc3 {[%clk 0:03:05.3]} 4... e6 {[%clk 0:03:03.9]} 5. Bg5 {[%clk 0:03:05.8]} 5...
dxc4 {[%clk 0:03:05.1]} 6. a4 {[%clk 0:03:05.7]} 6... c5 {[%clk 0:03:04.4]} 7.
e3 {[%clk 0:03:05.7]} 7... Nc6 {[%clk 0:02:58.9]} 8. Bxc4 {[%clk 0:03:06.1]}
8... cxd4 {[%clk 0:02:57.6]} 9. exd4 {[%clk 0:03:06.7]} 9... Be7 {[%clk
0:02:58.6]} 10. O-O {[%clk 0:03:07.3]} 10... O-O {[%clk 0:03:00]} 11. Re1 {[%clk
0:03:02.8]} 11... Bd7 {[%clk 0:02:09.9]} 12. d5 {[%clk 0:02:47.6]} 12... Nxd5
{[%clk 0:01:30.5]} 13. Bxe7 {[%clk 0:01:29]} 13... Ndxe7 {[%clk 0:01:27.9]} 14.
Ne4 {[%clk 0:01:25.5]} 14... Nb4 {[%clk 0:00:53.8]} 15. Ne5 {[%clk 0:01:07.8]}
15... Bc6 {[%clk 0:00:49.8]} 16. Qb3 {[%clk 0:01:00.1]} 16... Nbd5 {[%clk
0:00:36.2]} 17. Ng5 {[%clk 0:00:46.9]} 17... h6 {[%clk 0:00:27.7]} 18. Ne4
{[%clk 0:00:26.4]} 18... Qb6 {[%clk 0:00:24]} 19. Qg3 {[%clk 0:00:21]} 19... Nf5
{[%clk 0:00:24.7]} 20. Qg4 {[%clk 0:00:21.4]} 20... Qd4 {[%clk 0:00:19.1]} 21.
Nxc6 {[%clk 0:00:17]} 21... bxc6 {[%clk 0:00:19]} 22. b3 {[%clk 0:00:16.1]}
22... Nf6 {[%clk 0:00:17.7]} 23. Qf3 {[%clk 0:00:12.7]} 23... Nxe4 {[%clk
0:00:18.2]} 24. Rxe4 {[%clk 0:00:14.6]} 24... Qxe4 {[%clk 0:00:19.2]} 25. Qxe4
{[%clk 0:00:14.7]} 1-0

[Event "*** Titled Tuesday Blitz"]
[Site "Chess.com"]
[Date "2018.09.04"]
[Round "9"]
[White "VerdeNotte"]
[Black "Nowaybacksasha"]
[Result "1-0"]
[WhiteElo "2823"]
[BlackElo "2804"]
[TimeControl "180+2"]
[EndTime "15:39:09 PDT"]
[Termination "VerdeNotte won on time"]

1. e4 {[%clk 0:03:01.9]} 1... c5 {[%clk 0:03:00.9]} 2. Nf3 {[%clk 0:03:02.6]}
2... d6 {[%clk 0:03:02.4]} 3. Bb5+ {[%clk 0:03:03.5]} 3... Nd7 {[%clk
0:03:03.6]} 4. a4 {[%clk 0:03:01.8]} 4... Nf6 {[%clk 0:03:03.7]} 5. Nc3 {[%clk
0:03:02.4]} 5... a6 {[%clk 0:02:52.5]} 6. Bc4 {[%clk 0:03:03.2]} 6... b6 {[%clk
0:02:50.6]} 7. d4 {[%clk 0:03:03.3]} 7... cxd4 {[%clk 0:02:44.3]} 8. Nxd4 {[%clk
0:03:04.2]} 8... e6 {[%clk 0:02:43]} 9. Bxe6 {[%clk 0:03:02.9]} 9... fxe6 {[%clk
0:02:36]} 10. Nxe6 {[%clk 0:03:03.9]} 10... Qe7 {[%clk 0:02:37.7]} 11. Nc7+
{[%clk 0:03:05]} 11... Kd8 {[%clk 0:02:39.4]} 12. Nxa8 {[%clk 0:03:06]} 12...
Bb7 {[%clk 0:02:41.1]} 13. Nxb6 {[%clk 0:03:00.1]} 13... Nxb6 {[%clk 0:02:37.6]}
14. O-O {[%clk 0:02:57]} 14... Kc8 {[%clk 0:02:36.8]} 15. a5 {[%clk 0:02:53.5]}
15... Nbd7 {[%clk 0:02:35.9]} 16. Re1 {[%clk 0:02:50.8]} 16... Qf7 {[%clk
0:02:35.8]} 17. Qd4 {[%clk 0:02:42]} 17... Be7 {[%clk 0:02:26.3]} 18. Ra4 {[%clk
0:02:24.8]} 18... Re8 {[%clk 0:01:53.2]} 19. Rc4+ {[%clk 0:02:13.4]} 19... Kb8
{[%clk 0:01:25.1]} 20. Be3 {[%clk 0:02:13.5]} 20... Nc5 {[%clk 0:01:26.8]} 21.
b4 {[%clk 0:02:10.7]} 21... Ng4 {[%clk 0:00:34.9]} 22. bxc5 {[%clk 0:02:09.9]}
22... Nxe3 {[%clk 0:00:30.7]} 23. Rxe3 {[%clk 0:02:06]} 23... dxc5 {[%clk
0:00:30.2]} 24. Qe5+ {[%clk 0:01:51.8]} 24... Ka8 {[%clk 0:00:27.8]} 25. Nd5
{[%clk 0:01:52.4]} 25... Bd8 {[%clk 0:00:25.7]} 26. Qd6 {[%clk 0:01:42.8]} 26...
Bxa5 {[%clk 0:00:18.5]} 27. Rxc5 {[%clk 0:01:42.8]} 27... Rd8 {[%clk 0:00:18.9]}
28. Qe5 {[%clk 0:01:33.2]} 28... Bb4 {[%clk 0:00:09.5]} 29. Rc7 {[%clk
0:01:29.8]} 29... Qg6 {[%clk 0:00:04.8]} 30. Rxb7 {[%clk 0:01:25.6]} 30... Bd6
{[%clk 0:00:05.7]} 31. Qb2 {[%clk 0:01:15]} 31... Qh5 {[%clk 0:00:02.9]} 32. g3
{[%clk 0:01:06.6]} 1-0

[Event "*** Titled Tuesday Blitz"]
[Site "Chess.com"]
[Date "2018.09.04"]
[Round "9"]
[White "GMKrikor"]
[Black "wonderfultime"]
[Result "0-1"]
[WhiteElo "2750"]
[BlackElo "2844"]
[TimeControl "180+2"]
[EndTime "15:39:11 PDT"]
[Termination "wonderfultime won by resignation"]

1. Nf3 {[%clk 0:02:59.5]} 1... Nf6 {[%clk 0:02:59.3]} 2. c4 {[%clk 0:02:59.5]}
2... e6 {[%clk 0:03:00.2]} 3. g3 {[%clk 0:03:00.5]} 3... d5 {[%clk 0:03:01.5]}
4. Bg2 {[%clk 0:03:02]} 4... dxc4 {[%clk 0:03:02.8]} 5. Qa4+ {[%clk 0:03:02]}
5... Bd7 {[%clk 0:03:04.1]} 6. Qxc4 {[%clk 0:03:02.7]} 6... c5 {[%clk
0:03:05.7]} 7. Ne5 {[%clk 0:02:59.6]} 7... Qc8 {[%clk 0:03:07]} 8. Qd3 {[%clk
0:03:01.2]} 8... Nc6 {[%clk 0:03:07.9]} 9. Nxd7 {[%clk 0:03:02.9]} 9... Nxd7
{[%clk 0:03:09.8]} 10. O-O {[%clk 0:03:03.7]} 10... Be7 {[%clk 0:03:10.9]} 11.
e3 {[%clk 0:02:59.7]} 11... O-O {[%clk 0:03:11.7]} 12. Qc2 {[%clk 0:02:55.4]}
12... Rd8 {[%clk 0:03:10.7]} 13. a3 {[%clk 0:02:56.3]} 13... Nde5 {[%clk
0:03:05.3]} 14. Rd1 {[%clk 0:02:48.6]} 14... Nd3 {[%clk 0:02:56.5]} 15. Be4
{[%clk 0:02:48.9]} 15... Qd7 {[%clk 0:02:57.9]} 16. Nc3 {[%clk 0:02:42.7]} 16...
Nce5 {[%clk 0:02:09.7]} 17. f4 {[%clk 0:02:38.7]} 17... Ng4 {[%clk 0:02:10.8]}
18. Bxd3 {[%clk 0:02:18.3]} 18... Qxd3 {[%clk 0:02:10.2]} 19. Qxd3 {[%clk
0:02:20.2]} 19... Rxd3 {[%clk 0:02:11.9]} 20. h3 {[%clk 0:02:21.1]} 20... Nf6
{[%clk 0:02:00.7]} 21. Kf1 {[%clk 0:02:20]} 21... Rad8 {[%clk 0:01:56.9]} 22.
Ke2 {[%clk 0:02:11.3]} 22... c4 {[%clk 0:01:31.5]} 23. b3 {[%clk 0:02:07]} 23...
cxb3 {[%clk 0:01:32.4]} 24. Rb1 {[%clk 0:02:08.1]} 24... b6 {[%clk 0:01:30.1]}
25. Rxb3 {[%clk 0:02:03.2]} 25... Ne4 {[%clk 0:01:29.3]} 26. g4 {[%clk
0:01:49.3]} 26... f5 {[%clk 0:01:30]} 27. gxf5 {[%clk 0:01:26.7]} 27... exf5
{[%clk 0:01:31.9]} 28. a4 {[%clk 0:01:13.8]} 28... Kf7 {[%clk 0:01:27.7]} 29.
Rg1 {[%clk 0:00:49]} 29... g6 {[%clk 0:01:19.4]} 30. a5 {[%clk 0:00:23.7]} 30...
Nxd2 {[%clk 0:01:10.7]} 31. Bxd2 {[%clk 0:00:15.8]} 31... Rxd2+ {[%clk
0:01:12.6]} 32. Kf3 {[%clk 0:00:17.4]} 32... R8d3 {[%clk 0:01:11.1]} 33. axb6
{[%clk 0:00:14.1]} 33... axb6 {[%clk 0:01:07]} 34. Re1 {[%clk 0:00:06.3]} 34...
Rc2 {[%clk 0:01:04.6]} 0-1

[Event "*** Titled Tuesday Blitz"]
[Site "Chess.com"]
[Date "2018.09.04"]
[Round "9"]
[White "danyuffa"]
[Black "jefferyx"]
[Result "1-0"]
[WhiteElo "2731"]
[BlackElo "2789"]
[TimeControl "180+2"]
[EndTime "15:39:32 PDT"]
[Termination "danyuffa won by resignation"]

1. d4 {[%clk 0:03:01.8]} 1... Nf6 {[%clk 0:03:01.5]} 2. c4 {[%clk 0:03:02.7]}
2... g6 {[%clk 0:03:03.1]} 3. Nc3 {[%clk 0:03:01.1]} 3... d5 {[%clk 0:03:04.4]}
4. Nf3 {[%clk 0:03:00.1]} 4... Bg7 {[%clk 0:03:05.3]} 5. Bg5 {[%clk 0:03:00.9]}
5... Ne4 {[%clk 0:03:06]} 6. h4 {[%clk 0:02:59.7]} 6... h6 {[%clk 0:02:57.3]} 7.
Bf4 {[%clk 0:02:57.7]} 7... Nxc3 {[%clk 0:02:24.7]} 8. bxc3 {[%clk 0:02:57.9]}
8... c5 {[%clk 0:02:26.6]} 9. e3 {[%clk 0:02:55]} 9... O-O {[%clk 0:02:26]} 10.
Rb1 {[%clk 0:02:36]} 10... Nc6 {[%clk 0:02:24.4]} 11. Qd2 {[%clk 0:02:29.3]}
11... dxc4 {[%clk 0:02:11]} 12. Bxc4 {[%clk 0:02:29.6]} 12... Na5 {[%clk
0:02:12.8]} 13. Be2 {[%clk 0:02:28]} 13... Be6 {[%clk 0:02:09.5]} 14. O-O {[%clk
0:02:24.9]} 14... Rc8 {[%clk 0:02:09.7]} 15. e4 {[%clk 0:02:21.7]} 15... cxd4
{[%clk 0:02:02.8]} 16. cxd4 {[%clk 0:02:22.7]} 16... Bc4 {[%clk 0:02:04.7]} 17.
Bxh6 {[%clk 0:02:09]} 17... Bxe2 {[%clk 0:01:51]} 18. Bxg7 {[%clk 0:02:08.4]}
18... Kxg7 {[%clk 0:01:52.9]} 19. Qxe2 {[%clk 0:02:08.7]} 19... Qd6 {[%clk
0:01:54.4]} 20. Rfd1 {[%clk 0:02:06.4]} 20... b6 {[%clk 0:01:53.5]} 21. Rb5
{[%clk 0:02:03.1]} 21... Qc6 {[%clk 0:01:44.6]} 22. Rg5 {[%clk 0:02:01.2]} 22...
Qc4 {[%clk 0:01:41.4]} 23. Qxc4 {[%clk 0:01:57.1]} 23... Rxc4 {[%clk 0:01:43.3]}
24. h5 {[%clk 0:01:57.7]} 24... Rd8 {[%clk 0:01:33.3]} 25. hxg6 {[%clk 0:01:54]}
25... fxg6 {[%clk 0:01:35.2]} 26. Ne5 {[%clk 0:01:26.2]} 26... Rcxd4 {[%clk
0:01:35.3]} 27. Rxd4 {[%clk 0:01:26.4]} 27... Rxd4 {[%clk 0:01:37.2]} 28. Rxg6+
{[%clk 0:01:27.9]} 28... Kf8 {[%clk 0:01:38.6]} 29. Re6 {[%clk 0:01:14.3]} 29...
Ke8 {[%clk 0:00:58.6]} 30. f3 {[%clk 0:01:04.7]} 30... Ra4 {[%clk 0:00:59.7]}
31. Rh6 {[%clk 0:00:59.2]} 31... Kd8 {[%clk 0:01:00.1]} 32. g4 {[%clk
0:00:59.2]} 32... Rxa2 {[%clk 0:00:39.6]} 33. g5 {[%clk 0:01:00]} 33... Ra1+
{[%clk 0:00:41.5]} 34. Kg2 {[%clk 0:00:59.8]} 34... Ra2+ {[%clk 0:00:43.4]} 35.
Kg3 {[%clk 0:01:00.5]} 35... Ra1 {[%clk 0:00:45]} 36. g6 {[%clk 0:00:55.6]}
36... Kc7 {[%clk 0:00:41.9]} 37. Kf4 {[%clk 0:00:49.1]} 1-0

[Event "*** Titled Tuesday Blitz"]
[Site "Chess.com"]
[Date "2018.09.04"]
[Round "9"]
[White "maziarbagheri"]
[Black "VeraNebolsina"]
[Result "0-1"]
[WhiteElo "2305"]
[BlackElo "2384"]
[TimeControl "180+2"]
[EndTime "15:39:36 PDT"]
[Termination "VeraNebolsina won by resignation"]

1. e4 {[%clk 0:03:01.9]} 1... c5 {[%clk 0:03:00.3]} 2. Nf3 {[%clk 0:02:59.8]}
2... d6 {[%clk 0:03:01]} 3. d4 {[%clk 0:03:00.2]} 3... cxd4 {[%clk 0:03:01.9]}
4. Nxd4 {[%clk 0:03:01.6]} 4... Nf6 {[%clk 0:03:02.6]} 5. Nc3 {[%clk 0:03:03]}
5... a6 {[%clk 0:03:03.3]} 6. Bg5 {[%clk 0:03:03.1]} 6... Nbd7 {[%clk
0:03:03.8]} 7. f4 {[%clk 0:03:03.6]} 7... e5 {[%clk 0:03:03.4]} 8. Nf5 {[%clk
0:02:36.4]} 8... Qb6 {[%clk 0:02:50.7]} 9. Rb1 {[%clk 0:01:59.4]} 9... h6 {[%clk
0:02:43.8]} 10. Bh4 {[%clk 0:01:51.9]} 10... g6 {[%clk 0:02:34.9]} 11. Bf2
{[%clk 0:01:49.7]} 11... Qa5 {[%clk 0:02:34.1]} 12. Nxd6+ {[%clk 0:01:44.6]}
12... Bxd6 {[%clk 0:02:33.9]} 13. Qxd6 {[%clk 0:01:43.8]} 13... Nxe4 {[%clk
0:02:34.6]} 14. Qd5 {[%clk 0:01:31.5]} 14... Qxd5 {[%clk 0:02:34.4]} 15. Nxd5
{[%clk 0:01:29.9]} 15... Nxf2 {[%clk 0:02:35.3]} 16. Kxf2 {[%clk 0:01:26.3]}
16... O-O {[%clk 0:02:36.1]} 17. Bc4 {[%clk 0:01:16.7]} 17... b5 {[%clk
0:02:31.4]} 18. Ne7+ {[%clk 0:01:09.7]} 18... Kg7 {[%clk 0:02:30.6]} 19. Bd5
{[%clk 0:01:11.1]} 19... Ra7 {[%clk 0:02:30.7]} 20. c3 {[%clk 0:00:51.5]} 20...
exf4 {[%clk 0:02:17.2]} 21. Nc6 {[%clk 0:00:49.6]} 21... Rc7 {[%clk 0:02:17.5]}
22. Rhe1 {[%clk 0:00:49.1]} 22... Bb7 {[%clk 0:02:16.3]} 23. Nb4 {[%clk
0:00:48.7]} 23... a5 {[%clk 0:02:15]} 24. Bxb7 {[%clk 0:00:48.1]} 24... axb4
{[%clk 0:02:15.7]} 25. Bd5 {[%clk 0:00:36.5]} 25... bxc3 {[%clk 0:02:11.7]} 26.
Rbc1 {[%clk 0:00:29.8]} 26... b4 {[%clk 0:02:02]} 27. bxc3 {[%clk 0:00:19]}
27... bxc3 {[%clk 0:02:02.8]} 28. Rc2 {[%clk 0:00:20]} 28... Rb8 {[%clk
0:02:01.4]} 29. Rec1 {[%clk 0:00:20.4]} 29... Rb2 {[%clk 0:02:01.1]} 30. Bb3
{[%clk 0:00:20.6]} 30... Ne5 {[%clk 0:01:58.1]} 31. Ke2 {[%clk 0:00:17.9]} 31...
Re7 {[%clk 0:01:53.1]} 32. Kd1 {[%clk 0:00:11.7]} 32... Nd3 {[%clk 0:01:50.2]}
33. Rxb2 {[%clk 0:00:12.5]} 33... cxb2 {[%clk 0:01:44.4]} 34. Rb1 {[%clk
0:00:13.4]} 34... Re1+ {[%clk 0:01:44.8]} 35. Kc2 {[%clk 0:00:14.7]} 35... Rc1+
{[%clk 0:01:44.7]} 36. Kxd3 {[%clk 0:00:12.9]} 36... Rxb1 {[%clk 0:01:45.8]} 37.
Kc2 {[%clk 0:00:13.5]} 37... Rg1 {[%clk 0:01:46.1]} 38. Kxb2 {[%clk 0:00:15.4]}
38... Rxg2+ {[%clk 0:01:47.2]} 39. Kc3 {[%clk 0:00:16.7]} 39... f3 {[%clk
0:01:46.1]} 40. a4 {[%clk 0:00:18.6]} 40... f2 {[%clk 0:01:46.8]} 41. Bc4 {[%clk
0:00:19.4]} 41... Rg4 {[%clk 0:01:47.2]} 42. Bf1 {[%clk 0:00:17.7]} 42... Rxa4
{[%clk 0:01:47.8]} 43. Kd2 {[%clk 0:00:17.9]} 43... Ra2+ {[%clk 0:01:43.6]} 44.
Ke3 {[%clk 0:00:19.8]} 44... f5 {[%clk 0:01:42.8]} 45. h3 {[%clk 0:00:19.8]}
45... Kf6 {[%clk 0:01:43.5]} 46. Kf3 {[%clk 0:00:20.4]} 46... Ke5 {[%clk
0:01:44]} 47. Bc4 {[%clk 0:00:21.5]} 47... g5 {[%clk 0:01:42.9]} 48. Bxa2 {[%clk
0:00:21.6]} 48... f1=Q+ {[%clk 0:01:43]} 49. Ke3 {[%clk 0:00:20.3]} 0-1